bitfinex-derivatives/quotes_BTCF0:USTF0_20250827
["timestamp","ask_amount","ask_price","bid_price","bid_amount"]
[1756255047431,1.00678916,111790.0,111780.0,0.3702548]
[1756255047734,1.00678916,111790.0,111780.0,0.7310548]
[1756255049340,1.352737,111790.0,111780.0,0.7310548]
[1756255051734,0.529137,111790.0,111780.0,1.07700264]
[1756255051938,1.00674916,111790.0,111780.0,1.07700264]
[1756255052336,1.00674916,111790.0,111780.0,1.07700274]
[1756255053442,1.00674916,111790.0,111780.0,0.7310549]
[1756255053940,0.18318916,111790.0,111780.0,1.07700274]
[1756255054143,1.00674916,111790.0,111780.0,1.07700274]
[1756255054336,0.09373666,111790.0,111780.0,1.32700274]
[1756255054537,0.91729666,111790.0,111780.0,1.32700274]
[1756255055036,0.90050194,111790.0,111780.0,1.32700274]
[1756255055239,0.005,111790.0,111780.0,1.32700274]
[1756255055434,1.7951665,111810.0,111800.0,0.20094309]
[1756255055644,1.81184471,111810.0,111800.0,0.98523093]
[1756255055842,1.81184471,111810.0,111800.0,1.09523093]
[1756255055843,2.63540471,111810.0,111800.0,1.09523093]
[1756255056237,2.54596821,111810.0,111800.0,1.45603093]
[1756255056935,0.02367821,111810.0,111800.0,1.45603093]
[1756255057141,0.02367821,111810.0,111800.0,1.70603093]
[1756255057349,0.84715821,111810.0,111800.0,1.70603093]
[1756255057542,0.84215821,111810.0,111800.0,1.70603093]
[1756255057748,0.84315821,111810.0,111800.0,1.70603093]
[1756255058545,0.91380671,111810.0,111800.0,1.70603093]
[1756255058745,0.8971285,111810.0,111800.0,1.70603093]
[1756255059830,0.8970885,111810.0,111800.0,1.70603093]
[1756255060035,0.0736485,111810.0,111800.0,1.70603093]
[1756255063144,0.0716485,111810.0,111800.0,1.70603093]
[1756255063446,0.0706485,111810.0,111800.0,1.70703093]
[1756255063646,0.95293476,111820.0,111810.0,0.2415308]
[1756255063848,0.95293476,111820.0,111810.0,1.09827864]
[1756255065846,0.95293476,111820.0,111810.0,1.09927864]
[1756255066843,0.01611897,111820.0,111810.0,1.09927864]
[1756255067044,0.74904,111820.0,111810.0,1.27927864]
[1756255067840,0.82031885,111820.0,111810.0,1.27927864]
[1756255069053,0.90974175,111820.0,111810.0,1.27927864]
[1756255069351,0.91411175,111820.0,111810.0,1.15927864]
[1756255069948,0.90974175,111820.0,111810.0,1.15927864]
[1756255070250,0.9260308,111820.0,111810.0,1.15927864]
[1756255073240,0.1769908,111820.0,111810.0,1.15927864]
[1756255073440,1.0001508,111820.0,111810.0,1.15927864]
[1756255074458,1.0045208,111820.0,111810.0,0.95927864]
[1756255076146,1.0001508,111820.0,111810.0,0.95927864]
[1756255076945,1.0001108,111820.0,111810.0,0.95927864]
[1756255077252,0.1769908,111820.0,111810.0,0.95927864]
[1756255077453,1.0000708,111820.0,111810.0,0.95927864]
[1756255077747,1.0044408,111820.0,111810.0,0.95927864]
[1756255080353,1.0044408,111820.0,111810.0,0.5239]
[1756255080542,1.0044408,111820.0,111810.0,0.95927894]
[1756255081250,1.0044408,111820.0,111810.0,0.6133311]
[1756255081455,1.0044408,111820.0,111810.0,0.95927894]
[1756255087259,1.0044408,111820.0,111810.0,0.87251603]
[1756255088861,1.0044408,111820.0,111810.0,1.13170096]
[1756255090361,1.0044408,111820.0,111810.0,1.13089096]
[1756255097059,1.0044408,111820.0,111810.0,0.6125211]
[1756255097256,1.0044408,111820.0,111810.0,1.13089096]
[1756255097660,0.1769908,111820.0,111810.0,1.13089096]
[1756255097863,0.9999108,111820.0,111810.0,1.13089096]
[1756255098064,0.9999108,111820.0,111810.0,1.28089096]
[1756255099466,0.07127885,111820.0,111810.0,1.98007589]
[1756255099668,0.08955466,111830.0,111810.0,2.00171989]
[1756255099669,0.74399466,111830.0,111810.0,2.00171989]
[1756255099968,0.74399466,111830.0,111820.0,0.57586419]
[1756255100162,0.74399466,111830.0,111820.0,0.9439506]
[1756255101165,0.81596809,111830.0,111820.0,1.0333735]
[1756255102072,0.83106337,111830.0,111820.0,1.0333735]
[1756255102472,0.83106337,111830.0,111820.0,0.8233735]
[1756255102672,0.83543337,111830.0,111820.0,0.8233735]
[1756255103669,0.83643337,111830.0,111820.0,1.1841735]
[1756255103975,0.07310769,111830.0,111820.0,1.83335843]
[1756255104271,0.00113426,111830.0,111820.0,1.83335843]
[1756255104863,0.00113426,111830.0,111820.0,1.66797917]
[1756255105472,0.00113426,111830.0,111820.0,1.9271641]
[1756255105875,0.00113426,111830.0,111820.0,1.66797917]
[1756255106876,0.00113426,111830.0,111820.0,1.9271641]
[1756255108472,0.00113426,111830.0,111820.0,1.40879424]
[1756255108878,0.00113426,111830.0,111820.0,1.52141824]
[1756255109176,0.00113426,111830.0,111820.0,1.40879424]
[1756255109478,0.21574745,111850.0,111830.0,0.0894126]
[1756255109668,0.08954,111840.0,111830.0,1.5529726]
[1756255109882,0.02895,111840.0,111830.0,1.81215753]
[1756255110684,0.02895,111840.0,111830.0,2.32134246]
[1756255110986,0.46997603,111860.0,111850.0,0.13126044]
[1756255111188,0.46997603,111860.0,111850.0,0.26126044]
[1756255111386,0.46997603,111860.0,111850.0,0.25225044]
[1756255111686,0.46997603,111860.0,111850.0,0.62206044]
[1756255112086,0.2107911,111860.0,111850.0,0.62206044]
[1756255112289,0.72916096,111860.0,111850.0,0.62206044]
[1756255112688,0.72916096,111860.0,111850.0,0.88124537]
[1756255112891,0.75811096,111860.0,111850.0,0.87223537]
[1756255113391,0.58511431,111860.0,111850.0,0.61305044]
[1756255113888,0.58811431,111860.0,111850.0,0.61305044]
[1756255114088,0.60303824,111860.0,111850.0,0.61305044]
[1756255115488,0.67447754,111860.0,111850.0,0.61305044]
[1756255116190,1.03527754,111860.0,111850.0,0.14844134]
[1756255116488,0.67447754,111860.0,111850.0,0.23784044]
[1756255116888,0.32910433,111860.0,111850.0,0.23784044]
[1756255117091,0.67447754,111860.0,111850.0,0.26054044]
[1756255117678,0.67447754,111860.0,111850.0,0.25181044]
[1756255117988,0.67447754,111860.0,111850.0,0.27495044]
[1756255119090,0.67447754,111860.0,111850.0,0.25181044]
[1756255119487,0.67447754,111860.0,111850.0,0.26054044]
[1756255119687,0.67447754,111860.0,111850.0,0.27495044]
[1756255122195,1.49703754,111860.0,111850.0,0.28396044]
[1756255122589,1.49703754,111860.0,111850.0,0.27495044]
[1756255123088,0.2247893,111860.0,111850.0,0.80476044]
[1756255123293,0.3141804,111860.0,111850.0,0.80476044]
[1756255123687,0.3141804,111860.0,111850.0,1.15013365]
[1756255123996,0.3141804,111860.0,111850.0,0.80476044]
[1756255124196,0.2824504,111860.0,111850.0,0.80476044]
[1756255124399,0.33007711,111860.0,111850.0,0.80476044]
[1756255125094,0.3148204,111860.0,111850.0,0.80476044]
[1756255126398,0.3148204,111860.0,111850.0,0.79575044]
[1756255126598,0.66019361,111860.0,111850.0,0.61575044]
[1756255127798,0.3148204,111860.0,111850.0,0.61575044]
[1756255128202,0.66019361,111860.0,111850.0,0.61575044]
[1756255128503,0.3148204,111860.0,111850.0,0.61575044]
[1756255128799,0.66019361,111860.0,111850.0,0.61575044]
[1756255130206,0.67499389,111860.0,111850.0,0.61575044]
[1756255131303,0.67499389,111860.0,111850.0,0.72837444]
[1756255132105,0.67499389,111860.0,111850.0,0.61575044]
[1756255132606,0.67499389,111860.0,111850.0,0.72837444]
[1756255134508,0.32962068,111860.0,111850.0,0.72837444]
[1756255134707,0.67499389,111860.0,111850.0,0.72837444]
[1756255135307,0.84767156,111860.0,111850.0,0.98739988]
[1756255138408,0.84767156,111860.0,111850.0,0.72837444]
[1756255138609,0.84767156,111860.0,111850.0,0.98739988]
[1756255140604,0.84767156,111860.0,111850.0,0.72837444]
[1756255141912,0.32962068,111860.0,111850.0,0.72837444]
[1756255142106,0.32962068,111860.0,111850.0,0.99640988]
[1756255142410,0.84767156,111860.0,111850.0,0.98739988]
[1756255142906,0.32962068,111860.0,111850.0,0.99640988]
[1756255143209,0.84767156,111860.0,111850.0,0.72837444]
[1756255143510,0.84767156,111860.0,111850.0,0.98739988]
[1756255144707,0.84767156,111860.0,111850.0,0.36757444]
[1756255144911,2.03083156,111860.0,111850.0,0.27817534]
[1756255145115,1.20847156,111860.0,111850.0,0.23181044]
[1756255145315,1.67003156,111860.0,111850.0,0.23181044]
[1756255145510,1.67003156,111860.0,111850.0,0.25386044]
[1756255145711,1.15198068,111860.0,111850.0,0.25386044]
[1756255145906,1.67003156,111860.0,111850.0,0.25386044]
[1756255146112,1.15198068,111860.0,111850.0,0.25386044]
[1756255146312,1.67003156,111860.0,111850.0,0.25386044]
[1756255146613,0.84767156,111860.0,111850.0,0.25386044]
[1756255146814,1.67003156,111860.0,111850.0,0.25386044]
[1756255147214,2.539857,111860.0,111850.0,0.11]
[1756255147408,2.539857,111860.0,111840.0,0.08953966]
[1756255147409,0.2569791,111850.0,111840.0,0.00013426]
[1756255147610,0.0894147,111830.0,111820.0,0.54691332]
[1756255147817,0.51602014,111830.0,111820.0,0.42880332]
[1756255148018,0.77504558,111830.0,111820.0,0.26822602]
[1756255148223,0.77504558,111830.0,111820.0,0.17880332]
[1756255148511,0.88796411,111830.0,111820.0,0.23880332]
[1756255148716,0.88796411,111830.0,111820.0,0.32822602]
[1756255148917,2.22849499,111830.0,111820.0,0.32822602]
[1756255149217,2.03009405,111830.0,111820.0,0.16850911]
[1756255149418,1.92259403,111830.0,111820.0,0.16850911]
[1756255149816,2.01200873,111830.0,111820.0,0.07908641]
[1756255150823,2.01200873,111830.0,111820.0,0.08008641]
[1756255151421,2.04614873,111830.0,111820.0,0.08008641]
[1756255151918,2.04614873,111830.0,111820.0,0.07908641]
[1756255152616,2.04614873,111830.0,111820.0,0.19062041]
[1756255153520,2.04774873,111830.0,111820.0,0.19062041]
[1756255155416,2.04774873,111830.0,111820.0,0.19162041]
[1756255155621,2.04774873,111830.0,111820.0,0.19262041]
[1756255156022,2.04866873,111830.0,111820.0,0.45204291]
[1756255156321,2.04866873,111830.0,111820.0,0.45104291]
[1756255156521,2.04866873,111830.0,111820.0,0.36162041]
[1756255156817,2.04866873,111830.0,111820.0,0.36062041]
[1756255158523,2.04866873,111830.0,111820.0,0.36162041]
[1756255158710,2.04866873,111830.0,111820.0,0.36262041]
[1756255161920,1.79866873,111830.0,111820.0,0.36262041]
[1756255162123,0.2496106,111810.0,111800.0,0.09792419]
[1756255162422,1.41967146,111810.0,111800.0,0.35767419]
[1756255163224,1.41967146,111810.0,111800.0,0.35967419]
[1756255163423,1.78047146,111810.0,111800.0,0.46818279]
[1756255164319,0.13344,111810.0,111800.0,1.10826279]
[1756255164519,0.05334,111810.0,111800.0,1.45388365]
[1756255165123,0.05334,111810.0,111800.0,1.45488365]
[1756255165725,0.05334,111810.0,111800.0,1.45588365]
[1756255166325,0.60875306,111810.0,111800.0,0.49746279]
[1756255166516,0.60875306,111810.0,111800.0,0.74154419]
[1756255166721,0.60875306,111810.0,111800.0,0.38074419]
[1756255166914,0.96955306,111810.0,111800.0,0.46818259]
[1756255167118,0.96955306,111810.0,111800.0,0.47018259]
[1756255167319,0.96955306,111810.0,111800.0,0.38074419]
[1756255167729,0.96955306,111810.0,111800.0,0.32192419]
[1756255168421,0.96955306,111810.0,111800.0,0.32092419]
[1756255168821,0.96955306,111810.0,111800.0,0.26194419]
[1756255169527,0.96955306,111810.0,111800.0,0.28640419]
[1756255169727,0.96955306,111810.0,111800.0,0.09992419]
[1756255169928,0.96955306,111810.0,111800.0,0.14992419]
[1756255170127,0.96955306,111810.0,111800.0,0.26228994]
[1756255170723,0.98984517,111810.0,111800.0,0.20430994]
[1756255170933,1.58546603,111810.0,111800.0,0.1826157]
[1756255171429,1.58546603,111810.0,111800.0,0.07024419]
[1756255171430,1.23984517,111810.0,111800.0,0.07024419]
[1756255173328,2.06380517,111810.0,111800.0,0.07024419]
[1756255175629,2.06380517,111810.0,111800.0,0.02024419]
[1756255176431,0.2476183,111800.0,111790.0,0.35052562]
[1756255176725,1.29966002,111800.0,111790.0,0.35052562]
[1756255176929,1.29966002,111800.0,111790.0,0.11237151]
[1756255177131,0.2538861,111790.0,111780.0,0.15853151]
[1756255177333,1.42342696,111790.0,111780.0,0.19135151]
[1756255177630,1.42142696,111790.0,111780.0,0.19135151]
[1756255177827,0.2518861,111790.0,111780.0,0.19135151]
[1756255178132,1.42134696,111790.0,111780.0,0.21135151]
[1756255178331,1.49367526,111790.0,111780.0,0.24938151]
[1756255178532,1.49367526,111790.0,111780.0,0.25038151]
[1756255178832,1.42134696,111790.0,111780.0,0.25038151]
[1756255179128,1.78014696,111790.0,111780.0,0.11337151]
[1756255179521,1.78014696,111790.0,111780.0,0.001]
[1756255180421,1.78030696,111790.0,111780.0,0.001]
[1756255181528,0.95630696,111790.0,111780.0,0.001]
[1756255181728,3.28018696,111790.0,111780.0,0.001]
[1756255183637,3.35115579,111790.0,111780.0,0.001]
[1756255183833,3.37100296,111790.0,111780.0,0.001]
[1756255186040,2.54712296,111790.0,111780.0,0.001]
[1756255186233,3.37096296,111790.0,111780.0,0.2151541]
[1756255186428,1.87096296,111790.0,111780.0,0.2749741]
[1756255186633,1.04712296,111790.0,111780.0,0.2749741]
[1756255186835,1.87100296,111790.0,111780.0,0.5249741]
[1756255187633,1.87100296,111790.0,111780.0,0.4979741]
[1756255187838,1.87100296,111790.0,111780.0,0.4779741]
[1756255188338,1.87100296,111790.0,111780.0,0.5049741]
[1756255188842,1.04712296,111790.0,111780.0,0.5049741]
[1756255189039,1.87104296,111790.0,111780.0,0.5249741]
[1756255190943,1.87104296,111790.0,111780.0,0.4979741]
[1756255191943,1.04712296,111790.0,111780.0,0.2479741]
[1756255192142,1.1639821,111790.0,111780.0,0.2749741]
[1756255192337,1.50960296,111790.0,111780.0,0.2749741]
[1756255193437,1.48975579,111790.0,111780.0,0.2749741]
[1756255194644,1.48975579,111790.0,111780.0,0.2479741]
[1756255197244,1.48975579,111790.0,111780.0,0.2749741]
[1756255197746,1.48975579,111790.0,111780.0,0.2479741]
[1756255198340,1.48975579,111790.0,111780.0,0.021]
[1756255198547,2.12037316,111790.0,111780.0,0.001]
[1756255198845,0.2528941,111780.0,111770.0,0.01775363]
[1756255199042,0.95931496,111780.0,111770.0,0.01775363]
[1756255199942,0.95931496,111780.0,111770.0,0.01875363]
[1756255200249,0.95931496,111780.0,111770.0,0.01975363]
[1756255200548,0.2168823,111770.0,111760.0,0.11237151]
[1756255200751,1.76620923,111770.0,111760.0,0.11237151]
[1756255202548,1.74642316,111770.0,111760.0,0.11237151]
[1756255203248,0.92330316,111770.0,111760.0,0.11237151]
[1756255203444,1.38566316,111770.0,111760.0,0.29689151]
[1756255203750,1.38666316,111770.0,111760.0,0.29689151]
[1756255204154,1.38666316,111770.0,111760.0,0.38636161]
[1756255204656,1.38666316,111770.0,111760.0,0.37636161]
[1756255205343,1.38666316,111770.0,111760.0,0.34936161]
[1756255206150,0.11805,111770.0,111760.0,0.98716161]
[1756255206355,0.94125,111770.0,111760.0,0.98716161]
[1756255206546,1.0347021,111770.0,111760.0,0.8747901]
[1756255206746,1.38670296,111770.0,111760.0,0.8747901]
[1756255207550,1.38570296,111770.0,111760.0,0.8747901]
[1756255208648,0.47304086,111770.0,111760.0,0.8747901]
[1756255208853,0.94021,111770.0,111760.0,1.22041096]
[1756255209556,0.9442,111770.0,111760.0,0.8747901]
[1756255209948,0.9452,111770.0,111760.0,0.8747901]
[1756255210143,0.9452,111770.0,111760.0,0.8757901]
[1756255210754,0.9442,111770.0,111760.0,0.8757901]
[1756255211253,0.95058,111770.0,111760.0,0.8757901]
[1756255212757,0.94659,111770.0,111760.0,0.8757901]
[1756255212954,0.07582,111770.0,111760.0,1.51141096]
[1756255213143,0.93276,111780.0,111770.0,0.16905]
[1756255213454,0.93276,111780.0,111770.0,1.15493306]
[1756255213455,0.93675,111780.0,111770.0,1.15493306]
[1756255213957,0.94313,111780.0,111770.0,0.8093122]
[1756255214354,1.37920516,111780.0,111770.0,0.8093122]
[1756255215355,1.28975086,111780.0,111770.0,0.8093122]
[1756255216854,0.94313,111780.0,111770.0,0.8103122]
[1756255217256,1.0325843,111780.0,111770.0,0.8103122]
[1756255217459,1.19218424,111780.0,111770.0,0.8103122]
[1756255217758,1.23594424,111780.0,111770.0,0.8103122]
[1756255218959,1.14648994,111780.0,111770.0,0.8103122]
[1756255219457,1.20277994,111780.0,111770.0,0.8103122]
[1756255222559,0.11042,111780.0,111770.0,0.8103122]
[1756255222759,0.93346,111780.0,111770.0,1.15593306]
[1756255223059,0.93346,111780.0,111770.0,0.8103122]
[1756255223660,0.11042,111780.0,111770.0,0.8103122]
[1756255223861,0.11042,111780.0,111770.0,1.15593306]
[1756255224062,0.11042,111780.0,111770.0,1.31664997]
[1756255225063,0.11042,111780.0,111770.0,0.97102911]
[1756255225964,0.08159,111780.0,111770.0,0.97102911]
[1756255230065,0.08159,111780.0,111770.0,1.79398911]
[1756255230467,0.07521,111780.0,111770.0,1.79398911]
[1756255231368,0.07521,111780.0,111770.0,2.13960997]
[1756255231762,0.04775,111780.0,111770.0,2.13960997]
[1756255231966,0.02539,111780.0,111770.0,2.13960997]
[1756255232173,0.02539,111780.0,111770.0,1.97889306]
[1756255232468,1.40917876,111790.0,111780.0,0.16905]
[1756255232469,1.45931876,111790.0,111780.0,0.16905]
[1756255232672,1.45931876,111790.0,111780.0,0.63985]
[1756255232867,0.63228876,111790.0,111780.0,0.63985]
[1756255233173,1.43036876,111790.0,111780.0,0.63985]
[1756255233574,1.45919876,111790.0,111780.0,0.63985]
[1756255234264,1.45919876,111790.0,111780.0,0.6960241]
[1756255234570,1.46119876,111790.0,111780.0,0.6578341]
[1756255234964,1.46119876,111790.0,111780.0,0.6911141]
[1756255235470,1.44138139,111790.0,111780.0,0.7293041]
[1756255235671,1.44138139,111790.0,111780.0,0.6578341]
[1756255235971,1.44138139,111790.0,111780.0,0.6911141]
[1756255236372,1.46169295,111790.0,111780.0,0.11]
[1756255236578,2.07249295,111790.0,111780.0,0.07855]
[1756255236771,0.1078241,111780.0,111770.0,0.25032452]
[1756255237075,0.84357496,111780.0,111770.0,0.20212587]
[1756255237472,1.09357496,111780.0,111770.0,0.11266587]
[1756255237673,0.1091924,111770.0,111760.0,0.10773691]
[1756255237983,1.66790326,111770.0,111760.0,0.16773691]
[1756255238668,1.66790326,111770.0,111760.0,0.38324143]
[1756255238876,1.66790326,111770.0,111760.0,0.40598143]
[1756255239370,1.66790326,111770.0,111760.0,0.43833143]
[1756255239571,1.66790326,111770.0,111760.0,0.68531143]
[1756255240070,1.66790326,111770.0,111760.0,0.68631143]
[1756255240276,1.30710326,111770.0,111760.0,0.68631143]
[1756255240466,1.30710326,111770.0,111760.0,0.41831143]
[1756255240666,1.66790326,111770.0,111760.0,0.46831143]
[1756255240876,1.66890326,111770.0,111760.0,0.46731143]
[1756255241078,1.66990326,111770.0,111760.0,0.46531143]
[1756255241574,1.66990326,111770.0,111760.0,0.65531143]
[1756255241871,1.68953948,111770.0,111760.0,0.53349653]
[1756255242063,1.93953948,111770.0,111760.0,0.40086452]
[1756255242670,0.1093899,111760.0,111750.0,0.21550452]
[1756255242870,1.19069162,111760.0,111750.0,0.16086452]
[1756255243577,1.19069162,111760.0,111750.0,0.11259185]
[1756255246369,0.1386581,111750.0,111740.0,0.16458039]
[1756255246575,1.66795896,111750.0,111740.0,0.44307039]
[1756255246773,1.66795896,111750.0,111740.0,0.39393491]
[1756255247473,1.68077127,111750.0,111740.0,0.39393491]
[1756255247674,1.68077127,111750.0,111740.0,0.44493491]
[1756255248382,1.68077127,111750.0,111740.0,0.44693491]
[1756255249379,1.68077127,111750.0,111740.0,0.53642081]
[1756255249977,1.70088618,111750.0,111740.0,0.46709081]
[1756255250177,1.70088618,111750.0,111740.0,0.44860081]
[1756255250374,1.70088618,111750.0,111740.0,0.48095081]
[1756255250579,1.70088618,111750.0,111740.0,0.51793081]
[1756255250885,1.70088618,111750.0,111740.0,0.35911491]
[1756255251285,1.70088618,111750.0,111740.0,0.48095081]
[1756255251484,1.70088618,111750.0,111740.0,0.51793081]
[1756255251685,1.70088618,111750.0,111740.0,0.35706629]
[1756255251885,1.70088618,111750.0,111740.0,0.37555629]
[1756255254086,0.87800618,111750.0,111740.0,0.37555629]
[1756255254281,0.87800618,111750.0,111740.0,0.32555629]
[1756255254282,0.51720618,111750.0,111740.0,0.32555629]
[1756255254481,1.29094618,111750.0,111740.0,0.68635629]
[1756255255088,1.31067618,111750.0,111740.0,0.68635629]
[1756255255289,1.29805387,111750.0,111740.0,0.68635629]
[1756255255886,1.31103291,111750.0,111740.0,0.68635629]
[1756255256087,1.31103291,111750.0,111740.0,0.93635629]
[1756255256290,0.96541205,111750.0,111740.0,0.93635629]
[1756255256494,1.31103291,111750.0,111740.0,0.93635629]
[1756255256696,1.31103291,111750.0,111740.0,0.65635629]
[1756255257890,1.34029291,111750.0,111740.0,0.65635629]
[1756255258895,1.34029291,111750.0,111740.0,0.76876595]
[1756255261189,1.34029291,111750.0,111740.0,0.72796595]
[1756255262694,1.34029291,111750.0,111740.0,0.53796595]
[1756255263597,1.320178,111750.0,111740.0,0.53796595]
[1756255264594,0.497258,111750.0,111740.0,0.53796595]
[1756255264898,1.320138,111750.0,111740.0,0.89876595]
[1756255266392,0.92533694,111750.0,111740.0,0.89876595]
[1756255266591,0.94475694,111750.0,111740.0,0.78635629]
[1756255266792,0.85527904,111750.0,111740.0,0.78635629]
[1756255266998,0.94475694,111750.0,111740.0,0.78635629]
[1756255267496,0.97179694,111750.0,111740.0,0.78635629]
[1756255267698,1.3174178,111750.0,111740.0,0.78635629]
[1756255269507,1.3174178,111750.0,111740.0,0.24825039]
[1756255269715,1.3374969,111750.0,111740.0,0.17087039]
[1756255270001,1.9482969,111750.0,111740.0,0.02087039]
[1756255274501,1.9482969,111750.0,111740.0,0.11540966]
[1756255274702,0.0894939,111730.0,111720.0,0.05532]
[1756255274901,1.61871476,111730.0,111720.0,0.15315519]
[1756255275301,1.2730939,111730.0,111720.0,0.35466719]
[1756255275607,1.61871476,111730.0,111720.0,0.35466719]
[1756255275906,1.61871476,111730.0,111720.0,0.35566719]
[1756255276106,1.61871476,111730.0,111720.0,0.35766719]
[1756255276409,1.6894926,111730.0,111720.0,0.35766719]
[1756255276705,1.6894926,111730.0,111720.0,0.35666719]
[1756255276904,1.6894926,111730.0,111720.0,0.35566719]
[1756255277695,1.3286926,111730.0,111720.0,0.35566719]
[1756255281506,1.3286926,111730.0,111720.0,0.12728519]
[1756255281809,1.59871469,111730.0,111720.0,0.12728519]
[1756255282010,1.59875469,111730.0,111720.0,0.12728519]
[1756255282908,1.59875469,111730.0,111720.0,0.23984521]
[1756255286915,1.59875469,111730.0,111720.0,0.26671521]
[1756255287612,1.59875469,111730.0,111720.0,0.23984521]
[1756255287814,1.59875469,111730.0,111720.0,0.12728519]
[1756255289709,1.59875469,111730.0,111720.0,0.26603739]
[1756255291418,1.59875469,111730.0,111720.0,0.17653519]
[1756255295022,1.5787326,111730.0,111720.0,0.17653519]
[1756255297029,1.5796126,111730.0,111720.0,0.17653519]
[1756255297221,1.5796126,111730.0,111720.0,0.09653519]
[1756255297824,1.5796126,111730.0,111720.0,0.18603709]
[1756255298520,1.5796126,111730.0,111720.0,0.21960709]
[1756255300128,1.5796126,111730.0,111720.0,0.18603709]
[1756255300530,0.7567726,111730.0,111720.0,0.18603709]
[1756255300729,0.7567726,111730.0,111720.0,0.27494709]
[1756255301028,1.5794526,111730.0,111720.0,0.27494709]
[1756255302330,1.5794526,111730.0,111720.0,0.28494709]
[1756255303031,1.5794526,111730.0,111720.0,0.27494709]
[1756255304941,0.7567726,111730.0,111720.0,0.27494709]
[1756255305127,1.5794126,111730.0,111720.0,0.27494709]
[1756255305728,1.5794126,111730.0,111720.0,0.38750711]
[1756255307432,0.5067726,111730.0,111720.0,0.99830711]
[1756255307636,1.3293726,111730.0,111720.0,1.10830711]
[1756255308229,0.5067726,111730.0,111720.0,1.10830711]
[1756255308434,0.16027174,111730.0,111720.0,1.10830711]
[1756255308630,0.98287174,111730.0,111720.0,0.99574709]
[1756255309027,0.98375174,111730.0,111720.0,0.99574709]
[1756255309337,1.24336331,111730.0,111720.0,1.25535866]
[1756255311437,1.32990618,111730.0,111720.0,0.99574709]
[1756255312338,1.32990618,111730.0,111720.0,1.10830711]
[1756255312835,1.32990618,111730.0,111720.0,0.99574709]
[1756255313327,0.98375174,111730.0,111720.0,0.99574709]
[1756255313532,0.07077784,111730.0,111720.0,1.45457793]
[1756255313727,0.74484,111740.0,111730.0,0.1539536]
[1756255313932,0.74538,111740.0,111730.0,1.19406444]
[1756255314240,0.74572,111740.0,111730.0,0.84791]
[1756255314431,1.09187444,111740.0,111730.0,0.84791]
[1756255314838,1.09287444,111740.0,111730.0,0.84791]
[1756255315234,1.09287444,111740.0,111730.0,0.7352336]
[1756255315235,1.18236004,111740.0,111730.0,0.7352336]
[1756255315539,1.09287444,111740.0,111730.0,0.7352336]
[1756255315835,0.00188,111740.0,111730.0,1.09789063]
[1756255316030,0.001,111740.0,111730.0,1.09789063]
[1756255316338,0.001,111740.0,111730.0,0.9852336]
[1756255317337,0.00188,111740.0,111730.0,0.9852336]
[1756255320935,0.34803444,111740.0,111730.0,0.9852336]
[1756255321136,0.34803444,111740.0,111730.0,0.9852343]
[1756255321137,0.43752054,111740.0,111730.0,0.9852343]
[1756255321333,0.43752054,111740.0,111730.0,0.84786044]
[1756255322034,0.43752054,111740.0,111730.0,0.81429044]
[1756255322240,1.04832054,111740.0,111730.0,0.26232614]
[1756255323341,0.68752054,111740.0,111730.0,0.39756614]
[1756255323740,0.43752054,111740.0,111730.0,0.48706024]
[1756255323942,1.25980054,111740.0,111730.0,0.48706024]
[1756255324138,1.25980054,111740.0,111730.0,0.3744341]
[1756255324340,0.913646,111740.0,111730.0,0.7352341]
[1756255324541,1.25980044,111740.0,111730.0,0.7352341]
[1756255325932,0.43752044,111740.0,111730.0,0.7352341]
[1756255326140,1.16993444,111740.0,111730.0,0.7352341]
[1756255326338,1.16939444,111740.0,111730.0,0.7352341]
[1756255326844,0.82324,111740.0,111730.0,0.7352341]
[1756255327043,1.16939444,111740.0,111730.0,0.7352341]
[1756255329042,1.16939444,111740.0,111730.0,0.8478438]
[1756255329747,1.16839444,111740.0,111730.0,0.8478438]
[1756255330440,1.16939444,111740.0,111730.0,0.8478438]
[1756255331949,1.25888034,111740.0,111730.0,0.8478438]
[1756255334748,0.9127259,111740.0,111730.0,0.8478438]
[1756255334960,1.25888034,111740.0,111730.0,0.8478438]
[1756255336257,1.25888034,111740.0,111730.0,0.2623097]
[1756255336556,1.61968034,111740.0,111730.0,0.02966]
[1756255336764,0.0894939,111730.0,111720.0,0.51575554]
[1756255336954,0.43564834,111730.0,111720.0,0.53761554]
[1756255337155,0.0894939,111730.0,111720.0,0.62812554]
[1756255337355,0.43564834,111730.0,111720.0,0.62812554]
[1756255338056,0.45590426,111730.0,111720.0,0.53762204]
[1756255338257,0.81670426,111730.0,111720.0,0.33551034]
[1756255338462,0.52827141,111730.0,111720.0,0.42501234]
[1756255338656,0.52827141,111730.0,111720.0,0.57223182]
[1756255338856,0.52827141,111730.0,111720.0,0.62918182]
[1756255339057,0.52827141,111730.0,111720.0,0.53967982]
[1756255339656,0.77827141,111730.0,111720.0,0.16115467]
[1756255339857,1.13907141,111730.0,111720.0,0.16115467]
[1756255342959,1.13907141,111730.0,111720.0,0.04849519]
[1756255343869,1.13907141,111730.0,111720.0,0.16114795]
[1756255344766,1.13907141,111730.0,111720.0,0.14331276]
[1756255344961,2.30718585,111730.0,111720.0,0.11365276]
[1756255345166,1.96103141,111730.0,111720.0,0.14331276]
[1756255346066,0.52827141,111730.0,111720.0,0.28206276]
[1756255346262,1.35023141,111730.0,111720.0,0.28206276]
[1756255347065,0.50801549,111730.0,111720.0,0.37156476]
[1756255347273,0.50801549,111730.0,111720.0,0.75236476]
[1756255347466,1.33001549,111730.0,111720.0,0.639712]
[1756255348375,0.50801549,111730.0,111720.0,0.639712]
[1756255348674,1.32997549,111730.0,111720.0,0.639712]
[1756255349769,1.32997549,111730.0,111720.0,0.75234504]
[1756255351170,1.35009083,111730.0,111720.0,0.53047304]
[1756255351374,2.0586034,111730.0,111720.0,0.11363304]
[1756255351576,1.71244896,111730.0,111720.0,0.11363304]
[1756255351771,1.71244896,111730.0,111720.0,0.14329304]
[1756255352872,2.3086034,111730.0,111720.0,0.11363304]
[1756255353772,2.3086034,111730.0,111720.0,0.001]
[1756255354078,2.3086034,111730.0,111720.0,0.03066]
[1756255354379,1.96244896,111730.0,111720.0,0.03066]
[1756255358077,1.96244896,111730.0,111720.0,0.14329304]
[1756255358575,1.61629452,111730.0,111720.0,0.22913304]
[1756255358780,1.14048896,111730.0,111720.0,0.30067304]
[1756255358982,1.96228896,111730.0,111720.0,0.30067304]
[1756255359575,1.96228896,111730.0,111720.0,0.21104304]
[1756255359576,1.60148896,111730.0,111720.0,0.21104304]
[1756255359779,1.96228896,111730.0,111720.0,0.16967304]
[1756255359985,1.96228896,111730.0,111720.0,0.14329304]
[1756255360782,1.77818093,111730.0,111720.0,0.14329304]
[1756255362084,1.86767483,111730.0,111720.0,0.14329304]
[1756255363282,1.93835969,111730.0,111720.0,0.14329304]
[1756255364385,2.28451413,111730.0,111720.0,0.14329304]
[1756255364585,2.28451413,111730.0,111720.0,0.03066]
[1756255364781,1.93835969,111730.0,111720.0,0.03066]
[1756255364980,2.28451413,111730.0,111720.0,0.03066]
[1756255365284,2.28451413,111730.0,111720.0,0.14329304]